bitfinex/quotes_BTCUSD_20240607
["timestamp","ask_amount","ask_price","bid_price","bid_amount"]
[1717753629861,2.13760394,71223.0,71222.0,0.000946]
[1717753630064,2.20580394,71223.0,71222.0,0.081546]
[1717753630517,2.17001187,71223.0,71222.0,0.081546]
[1717753630722,2.02960787,71223.0,71222.0,0.081546]
[1717753630891,2.02960787,71223.0,71222.0,0.083546]
[1717753631688,2.02960787,71223.0,71222.0,0.081546]
[1717753632153,2.02960787,71223.0,71222.0,0.002946]
[1717753632154,1.81698894,71223.0,71222.0,0.002946]
[1717753632318,1.81698894,71223.0,71222.0,0.155846]
[1717753632558,1.81698894,71223.0,71222.0,0.159846]
[1717753632722,1.81698894,71223.0,71222.0,0.163846]
[1717753633074,1.81698894,71223.0,71222.0,0.159846]
[1717753633343,1.81698894,71223.0,71222.0,0.166846]
[1717753633907,1.85277884,71223.0,71222.0,0.162846]
[1717753634102,1.85277884,71223.0,71222.0,0.169846]
[1717753634378,1.85277871,71223.0,71222.0,0.169846]
[1717753637199,1.85277871,71223.0,71222.0,0.014946]
[1717753637200,1.92097871,71223.0,71222.0,0.014946]
[1717753637621,2.20580164,71223.0,71222.0,0.014946]
[1717753637795,2.13760164,71223.0,71222.0,0.014946]
[1717753638004,2.20580164,71223.0,71222.0,0.014946]
[1717753638605,2.21580164,71223.0,71222.0,0.014946]
[1717753638964,2.20580164,71223.0,71222.0,0.014946]
[1717753639783,2.20582247,71223.0,71222.0,0.014946]
[1717753642788,2.15481766,71223.0,71222.0,0.014946]
[1717753642959,2.20582175,71223.0,71222.0,0.014946]
[1717753643178,2.13762175,71223.0,71222.0,0.014946]
[1717753643382,2.20582175,71223.0,71222.0,0.014946]
[1717753647486,2.20582175,71223.0,71222.0,0.007946]
[1717753647696,2.20582175,71223.0,71222.0,0.006946]
[1717753648051,2.20582175,71223.0,71222.0,0.012946]
[1717753648256,2.20682175,71223.0,71222.0,0.012946]
[1717753651339,2.13862175,71223.0,71222.0,0.012946]
[1717753652717,2.12342754,71223.0,71222.0,0.012946]
[1717753652882,2.13862175,71223.0,71222.0,0.012946]
[1717753653486,2.12342754,71223.0,71222.0,0.012946]
[1717753653705,2.13862175,71223.0,71222.0,0.012946]
[1717753662525,1.85379882,71223.0,71222.0,0.012946]
[1717753662736,1.85379882,71223.0,71222.0,0.250046]
[1717753663175,1.83860461,71223.0,71222.0,0.250046]
[1717753663626,1.83852254,71223.0,71222.0,0.250046]
[1717753664109,1.85371675,71223.0,71222.0,0.250046]
[1717753665236,1.85369796,71223.0,71222.0,0.250046]
[1717753668038,1.85369796,71223.0,71222.0,0.090046]
[1717753674526,1.85369796,71223.0,71222.0,0.012946]
[1717753675600,2.31242089,71223.0,71222.0,0.012946]
[1717753675793,2.13852089,71223.0,71222.0,0.012946]
[1717753675966,2.37392089,71223.0,71222.0,0.012946]
[1717753676169,2.38392089,71223.0,71222.0,0.012946]
[1717753680299,2.42604605,71223.0,71222.0,0.012946]
[1717753682443,2.44710863,71223.0,71222.0,0.012946]
[1717753682904,2.38392089,71223.0,71222.0,0.012946]
[1717753683110,2.38392089,71223.0,71222.0,0.006946]
[1717753683517,2.38292089,71223.0,71222.0,0.000946]
[1717753684464,2.44610677,71223.0,71222.0,0.000946]
[1717753685869,2.38261609,71223.0,71222.0,0.000946]
[1717753686273,2.4457974,71223.0,71222.0,0.000946]
[1717753688221,2.42060319,71223.0,71222.0,0.000946]
[1717753688644,2.4457974,71223.0,71222.0,0.000946]
[1717753689160,2.5139974,71223.0,71222.0,0.000946]
[1717753689879,2.5139806,71223.0,71222.0,0.000946]
[1717753690298,2.45080764,71223.0,71222.0,0.000946]
[1717753691314,2.45082529,71223.0,71222.0,0.000946]
[1717753693261,2.51398538,71223.0,71222.0,0.000946]
[1717753694247,2.50398538,71223.0,71222.0,0.000946]
[1717753694892,2.36272529,71223.0,71222.0,0.000946]
[1717753696317,2.20542529,71223.0,71222.0,0.000946]
[1717753698511,2.21542529,71223.0,71222.0,0.000946]
[1717753703187,2.25752314,71223.0,71222.0,0.000946]
[1717753705455,2.18932314,71223.0,71222.0,0.000946]
[1717753705659,2.25752314,71223.0,71222.0,0.000946]
[1717753708340,2.21542529,71223.0,71222.0,0.000946]
[1717753712229,2.23234721,71223.0,71222.0,0.000946]
[1717753712437,2.21542529,71223.0,71222.0,0.000946]
[1717753714344,2.27858538,71223.0,71222.0,0.000946]
[1717753717335,2.21542529,71223.0,71222.0,0.000946]
[1717753718432,2.19023108,71223.0,71222.0,0.000946]
[1717753718715,2.20542529,71223.0,71222.0,0.000946]
[1717753718947,2.19023108,71223.0,71222.0,0.000946]
[1717753719162,2.21542529,71223.0,71222.0,0.000946]
[1717753719580,2.19023108,71223.0,71222.0,0.000946]
[1717753719781,2.21542529,71223.0,71222.0,0.000946]
[1717753720570,2.29964726,71223.0,71222.0,0.000946]
[1717753721151,2.21542529,71223.0,71222.0,0.000946]
[1717753721311,2.29964726,71223.0,71222.0,0.000946]
[1717753721512,2.28964726,71223.0,71222.0,0.000946]
[1717753722283,2.28971144,71223.0,71222.0,0.000946]
[1717753722493,2.29971144,71223.0,71222.0,0.000946]
[1717753725107,2.21542529,71223.0,71222.0,0.000946]
[1717753726822,2.14722529,71223.0,71222.0,0.000946]
[1717753727027,2.21542529,71223.0,71222.0,0.000946]
[1717753727230,2.21542529,71223.0,71222.0,0.080746]
[1717753727231,2.13722529,71223.0,71222.0,0.080746]
[1717753727439,2.27865187,71223.0,71222.0,0.080746]
[1717753727647,2.21542529,71223.0,71222.0,0.080746]
[1717753727868,2.2151381,71223.0,71222.0,0.080746]
[1717753728752,2.2986381,71223.0,71222.0,0.000946]
[1717753728950,2.45114674,71223.0,71222.0,0.000946]
[1717753733872,3.30995474,71223.0,71222.0,0.000946]
[1717753734096,3.47035474,71223.0,71222.0,0.000946]
[1717753734307,3.51339363,71223.0,71222.0,0.000946]
[1717753734509,3.51339586,71223.0,71222.0,0.000946]
[1717753735358,3.40800782,71223.0,71222.0,0.000946]
[1717753735504,3.30800782,71223.0,71222.0,0.000946]
[1717753735919,3.30900782,71223.0,71222.0,0.000946]
[1717753736253,3.40900782,71223.0,71222.0,0.000946]
[1717753736388,3.41000782,71223.0,71222.0,0.000946]
[1717753738488,3.40310782,71223.0,71222.0,0.000946]
[1717753738909,3.50848344,71223.0,71222.0,0.000946]
[1717753739115,3.40310782,71223.0,71222.0,0.000946]
[1717753740349,3.30310782,71223.0,71222.0,0.000946]
[1717753740776,3.15530782,71223.0,71222.0,0.000946]
[1717753740985,3.26068102,71223.0,71222.0,0.000946]
[1717753741207,2.95708102,71223.0,71222.0,0.000946]
[1717753741417,2.5389381,71223.0,71222.0,0.000946]
[1717753741637,2.67035668,71223.0,71222.0,0.000946]
[1717753742864,2.67035668,71223.0,71222.0,0.240146]
[1717753742865,1.90213954,71223.0,71222.0,0.240146]
[1717753743081,1.83892096,71223.0,71222.0,0.240146]
[1717753743299,1.83892096,71223.0,71222.0,0.38585936]
[1717753743741,1.8537097,71223.0,71222.0,0.38585347]
[1717753743946,1.83751549,71223.0,71222.0,0.38585347]
[1717753744395,1.83751549,71223.0,71222.0,0.45405347]
[1717753744621,1.80279473,71223.0,71222.0,0.45405347]
[1717753744883,1.80179473,71223.0,71222.0,0.45405347]
[1717753745357,1.80279473,71223.0,71222.0,0.60245947]
[1717753745566,1.80279473,71223.0,71222.0,0.59445947]
[1717753745780,1.80279473,71223.0,71222.0,0.61545947]
[1717753745990,1.80379473,71223.0,71222.0,0.54725947]
[1717753746208,1.80379473,71223.0,71222.0,0.54025947]
[1717753746643,1.80379473,71223.0,71222.0,0.55425947]
[1717753751804,1.80379473,71223.0,71222.0,0.55845777]
[1717753752020,1.80379473,71223.0,71222.0,0.55425947]
[1717753752230,1.80379473,71223.0,71222.0,0.55845777]
[1717753752428,1.80379473,71223.0,71222.0,0.55425947]
[1717753755307,1.80379473,71223.0,71222.0,0.55424421]
[1717753758875,1.81898894,71223.0,71222.0,0.55424421]
[1717753759576,1.80379473,71223.0,71222.0,0.55424421]
[1717753759776,1.81898894,71223.0,71222.0,0.55424421]
[1717753760242,1.80379473,71223.0,71222.0,0.55424421]
[1717753760719,1.81898894,71223.0,71222.0,0.55424421]
[1717753764681,1.81898894,71223.0,71222.0,0.17463821]
[1717753764682,1.88718894,71223.0,71222.0,0.17463821]
[1717753764883,2.04448894,71223.0,71222.0,0.17463821]
[1717753765506,1.97628894,71223.0,71222.0,0.16063821]
[1717753765705,1.97428894,71223.0,71222.0,0.14663821]
[1717753765917,1.97428894,71223.0,71222.0,0.15563821]
[1717753766120,1.97528894,71223.0,71222.0,0.16963821]
[1717753767312,1.81798894,71223.0,71222.0,0.16963821]
[1717753768290,1.85267494,71223.0,71222.0,0.16963821]
[1717753770496,1.8528623,71223.0,71222.0,0.16963821]
[1717753771933,1.9210623,71223.0,71222.0,0.16963821]
[1717753772342,1.92074371,71223.0,71222.0,0.16963821]
[1717753772681,1.85254371,71223.0,71222.0,0.16963821]
[1717753774748,1.81767035,71223.0,71222.0,0.16963821]
[1717753774957,1.8522243,71223.0,71222.0,0.16963821]
[1717753775397,2.06484323,71223.0,71222.0,0.16963821]
[1717753775620,2.30174323,71223.0,71222.0,0.16963821]
[1717753775836,2.44214723,71223.0,71222.0,0.16963821]
[1717753776062,2.4421489,71223.0,71222.0,0.16963821]
[1717753776638,2.3739489,71223.0,71222.0,0.16963821]
[1717753776852,2.4421489,71223.0,71222.0,0.16963821]
[1717753777728,2.44218251,71223.0,71222.0,0.16963821]
[1717753778144,2.45218251,71223.0,71222.0,0.16963821]
[1717753780189,2.41759328,71223.0,71222.0,0.16963821]
[1717753780393,2.4521648,71223.0,71222.0,0.16963821]
[1717753781594,2.45216478,71223.0,71222.0,0.16963821]
[1717753784648,2.38396478,71223.0,71222.0,0.16963821]
[1717753784803,2.45216478,71223.0,71222.0,0.16963821]
[1717753785010,2.45213876,71223.0,71222.0,0.023946]
[1717753787994,2.42694455,71223.0,71222.0,0.023946]
[1717753788390,2.45213876,71223.0,71222.0,0.023946]
[1717753789357,2.44213876,71223.0,71222.0,0.023946]
[1717753790213,2.45213876,71223.0,71222.0,0.023946]
[1717753790378,2.44213876,71223.0,71222.0,0.023946]
[1717753791137,2.45213876,71223.0,71222.0,0.023946]
[1717753794550,2.13703876,71223.0,71222.0,0.106346]
[1717753797415,1.85221583,71223.0,71222.0,0.023946]
[1717753797593,1.85221583,71223.0,71222.0,0.101646]
[1717753797772,1.85221583,71223.0,71222.0,0.260346]
[1717753797935,1.85221583,71223.0,71222.0,0.328546]
[1717753797936,1.83702162,71223.0,71222.0,0.328546]
[1717753798147,1.80247614,71223.0,71222.0,0.328546]
[1717753798812,1.80147614,71223.0,71222.0,0.314546]
[1717753799304,1.80247614,71223.0,71222.0,0.260346]
[1717753799549,1.80247614,71223.0,71222.0,0.246346]
[1717753799878,1.80347614,71223.0,71222.0,0.251346]
[1717753800120,1.80347614,71223.0,71222.0,0.265346]
[1717753800444,1.80147614,71223.0,71222.0,0.319546]
[1717753800681,1.80247614,71223.0,71222.0,0.319546]
[1717753801039,1.80247614,71223.0,71222.0,0.333546]
[1717753801664,1.80247614,71223.0,71222.0,0.319546]
[1717753802077,1.80147614,71223.0,71222.0,0.305546]
[1717753802271,1.80147614,71223.0,71222.0,0.319546]
[1717753802676,1.80147614,71223.0,71222.0,0.305546]
[1717753803032,1.80147614,71223.0,71222.0,0.319546]
[1717753803247,1.80147614,71223.0,71222.0,0.333546]
[1717753803685,1.80147614,71223.0,71222.0,0.473952]
[1717753805261,1.80147614,71223.0,71222.0,0.405752]
[1717753807732,1.72172742,71223.0,71222.0,0.4099503]
[1717753812467,1.72172742,71223.0,71222.0,0.6907623]
[1717753814618,1.72172742,71223.0,71222.0,0.7589623]
[1717753815223,1.72172742,71223.0,71222.0,0.6907623]
[1717753815427,1.72172742,71223.0,71222.0,0.7589623]
[1717753820345,1.72172742,71223.0,71222.0,0.473952]
[1717753820975,1.72172742,71223.0,71222.0,0.4781503]
[1717753823006,1.72172742,71223.0,71222.0,0.473952]
[1717753823618,1.72172742,71223.0,71222.0,0.4781503]
[1717753823823,1.72172742,71223.0,71222.0,0.473952]
[1717753824002,1.72172742,71223.0,71222.0,0.4781503]
[1717753824328,1.72172742,71223.0,71222.0,0.49465818]
[1717753824909,1.72172742,71223.0,71222.0,0.49045988]
[1717753825511,1.72172742,71223.0,71222.0,0.49465818]
[1717753825708,1.72172742,71223.0,71222.0,0.49045988]
[1717753825989,1.72172742,71223.0,71222.0,0.49465818]
[1717753830431,1.72172742,71223.0,71222.0,0.78600756]
[1717753830679,1.72172742,71223.0,71222.0,0.49465818]
[1717753831096,1.72172742,71223.0,71222.0,0.77547018]
[1717753832932,1.72172742,71223.0,71222.0,1.06681691]
[1717753835447,1.72172742,71223.0,71222.0,1.06261861]
[1717753835608,1.72172742,71223.0,71222.0,1.06681691]
[1717753836725,1.72172742,71223.0,71222.0,0.99861691]
[1717753836925,1.72172742,71223.0,71222.0,1.06681691]
[1717753840440,1.72172742,71223.0,71222.0,1.10861329]
[1717753840964,1.72172742,71223.0,71222.0,1.10869108]
[1717753841496,1.72172742,71223.0,71222.0,1.06681691]
[1717753842013,1.72172742,71223.0,71222.0,1.06261861]
[1717753842526,1.80147614,71223.0,71222.0,0.78342567]
[1717753842764,1.80147614,71223.0,71222.0,0.80971073]
[1717753843025,1.80147614,71223.0,71222.0,0.518364]
[1717753846360,1.80147614,71223.0,71222.0,0.450164]
[1717753846539,1.80147614,71223.0,71222.0,0.518364]
[1717753849123,1.80147614,71223.0,71222.0,0.237552]
[1717753850616,1.88307614,71223.0,71222.0,0.237552]
[1717753851231,1.88307614,71223.0,71222.0,0.169352]
[1717753852517,1.80147614,71223.0,71222.0,0.169352]
[1717753852726,1.80147614,71223.0,71222.0,0.27950278]
[1717753852902,1.80147614,71223.0,71222.0,0.237552]
[1717753856323,1.80147614,71223.0,71222.0,0.27950278]
[1717753857801,1.72172742,71223.0,71222.0,1.4378251]
[1717753858333,1.72172742,71223.0,71222.0,1.35392354]
[1717753859551,1.72172742,71223.0,71222.0,1.28572354]
[1717753859774,1.72172742,71223.0,71222.0,1.35392354]
[1717753859920,1.72172742,71223.0,71222.0,1.12550874]
[1717753860325,1.72172742,71223.0,71222.0,1.05730874]
[1717753860547,1.72172742,71223.0,71222.0,0.81430401]
[1717753861791,1.72172742,71223.0,71222.0,1.12550414]
[1717753862161,1.72172742,71223.0,71222.0,0.81430401]
[1717753863293,1.72172742,71223.0,71222.0,1.35391148]
[1717753865417,1.72172742,71223.0,71222.0,1.28151318]
[1717753865616,1.72172742,71223.0,71222.0,1.34971318]
[1717753865821,1.72172742,71223.0,71222.0,1.35391148]
[1717753866941,1.72172742,71223.0,71222.0,1.28571148]
[1717753867159,1.72172742,71223.0,71222.0,1.35391148]
[1717753869570,1.72172742,71223.0,71222.0,1.34971318]
[1717753869685,1.72172742,71223.0,71222.0,1.35391148]
[1717753869927,1.72172742,71223.0,71222.0,1.43781304]
[1717753870461,1.72172742,71223.0,71222.0,1.43361474]
[1717753871268,1.72172742,71223.0,71222.0,1.27981474]
[1717753871471,1.72172742,71223.0,71222.0,1.20481474]
[1717753875025,1.72172742,71223.0,71222.0,1.20484073]
[1717753875490,1.72172742,71223.0,71222.0,0.77189099]
[1717753875694,2.04717614,71223.0,71222.0,0.77189099]
[1717753875904,2.04717614,71223.0,71222.0,0.169352]
[1717753880677,2.04717614,71223.0,71222.0,0.237552]
[1717753883079,1.96457614,71223.0,71222.0,0.237552]
[1717753885416,1.80147614,71223.0,71222.0,0.237552]
[1717753895415,1.80147614,71223.0,71222.0,0.169352]
[1717753904020,1.72172742,71223.0,71222.0,0.7566623]
[1717753904176,1.72172742,71223.0,71222.0,1.30489323]
[1717753904361,1.72172742,71223.0,71222.0,1.72095256]
[1717753904546,1.72172742,71223.0,71222.0,1.61607704]
[1717753904984,1.72172742,71223.0,71222.0,1.60207704]
[1717753905389,1.72172742,71223.0,71222.0,1.79007704]
[1717753906244,1.72172742,71223.0,71222.0,1.91579952]
[1717753906507,1.72172742,71223.0,71222.0,2.2308628]
[1717753906935,1.72172742,71223.0,71222.0,2.2448628]
[1717753907148,1.72172742,71223.0,71222.0,2.2308628]
[1717753907300,1.72172742,71223.0,71222.0,2.2168628]
[1717753907705,1.72172742,71223.0,71222.0,2.11914032]
[1717753907931,1.72172742,71223.0,71222.0,2.10514032]
[1717753908167,1.72172742,71223.0,71222.0,2.09114032]
[1717753908343,1.72172742,71223.0,71222.0,2.10514032]
[1717753909541,1.72172742,71223.0,71222.0,2.11914032]
[1717753915273,1.72172742,71223.0,71222.0,1.91714032]
[1717753915475,1.72172742,71223.0,71222.0,1.89688904]
[1717753915890,1.72172742,71223.0,71222.0,1.98058766]
[1717753917994,1.72172742,71223.0,71222.0,2.18258766]
[1717753918103,1.72172742,71223.0,71222.0,2.18058766]
[1717753918316,1.72172742,71223.0,71222.0,2.00150963]
[1717753918562,1.72172742,71223.0,71222.0,2.09688904]
[1717753919120,1.72172742,71223.0,71222.0,2.2014874]
[1717753919321,1.72172742,71223.0,71222.0,2.0014874]
[1717753919537,1.72172742,71223.0,71222.0,2.0005414]
[1717753919730,1.72172742,71223.0,71222.0,2.17962449]
[1717753919943,1.72172742,71223.0,71222.0,1.97962449]
[1717753920589,1.72172742,71223.0,71222.0,2.17962449]
[1717753920827,1.72172742,71223.0,71222.0,1.97962449]
[1717753921802,1.72172742,71223.0,71222.0,2.17962449]
[1717753922005,1.72172742,71223.0,71222.0,2.18162449]
[1717753922728,1.72172742,71223.0,71222.0,2.17962449]
[1717753923133,1.71672742,71223.0,71222.0,2.17962449]
[1717753923923,1.71672742,71223.0,71222.0,2.18257049]
[1717753924256,1.71672742,71223.0,71222.0,2.09888904]
[1717753924474,1.71672742,71223.0,71222.0,1.89688904]
[1717753924643,1.71672742,71223.0,71222.0,1.82868904]
[1717753924868,1.71672742,71223.0,71222.0,1.73539074]
[1717753925110,1.71672742,71223.0,71222.0,1.72555822]
[1717753925425,1.71672742,71223.0,71222.0,1.57900523]
[1717753929326,1.71672742,71223.0,71222.0,1.57480693]
[1717753929705,1.71672742,71223.0,71222.0,1.57900523]
[1717753931140,1.71672742,71223.0,71222.0,1.51080523]
[1717753931357,1.71672742,71223.0,71222.0,1.64177244]
[1717753931557,1.71672742,71223.0,71222.0,1.49117244]
[1717753932518,1.71672742,71223.0,71222.0,1.42840523]
[1717753932730,1.71672742,71223.0,71222.0,1.49117973]
[1717753933175,1.71672742,71223.0,71222.0,1.80234335]
[1717753936155,1.71672742,71223.0,71222.0,1.73956885]
[1717753938760,1.71672742,71223.0,71222.0,1.73537055]
[1717753938961,1.71672742,71223.0,71222.0,1.73956885]
[1717753939793,1.71672742,71223.0,71222.0,1.73537055]
[1717753939996,1.71672742,71223.0,71222.0,1.73956885]
[1717753940228,1.71672742,71223.0,71222.0,1.74646819]
[1717753940455,1.71672742,71223.0,71222.0,2.18416819]
[1717753940857,1.71672742,71223.0,71222.0,2.10046885]
[1717753941067,1.71672742,71223.0,71222.0,2.12072013]
[1717753941742,1.71672742,71223.0,71222.0,2.12069492]
[1717753946992,1.71672742,71223.0,71222.0,1.91869492]
[1717753947208,1.71672742,71223.0,71222.0,1.91449662]
[1717753947418,1.71672742,71223.0,71222.0,1.91869492]
[1717753947650,1.71672742,71223.0,71222.0,1.91449662]
[1717753947872,1.71672742,71223.0,71222.0,2.12069492]
[1717753948265,1.71672742,71223.0,71222.0,2.24630772]
[1717753949208,1.71672742,71223.0,71222.0,2.12069492]
[1717753949895,1.71672742,71223.0,71222.0,1.91449662]
[1717753950093,1.71672742,71223.0,71222.0,1.91869492]
[1717753950295,1.71672742,71223.0,71222.0,1.91449662]
[1717753950749,1.71672742,71223.0,71222.0,2.12069492]
[1717753952986,1.71672742,71223.0,71222.0,1.91449662]
[1717753953539,1.71672742,71223.0,71222.0,1.91869492]
[1717753955587,1.71672742,71223.0,71222.0,1.69009492]
[1717753955810,1.71672742,71223.0,71222.0,1.95829492]
[1717753956236,1.71672742,71223.0,71222.0,1.96029492]
[1717753958024,1.71672742,71223.0,71222.0,1.75829492]
[1717753958228,1.71672742,71223.0,71222.0,1.96029492]
[1717753959088,1.21042742,71223.0,71222.0,7.74440692]
[1717753959330,1.21042742,71223.0,71222.0,8.24621911]
[1717753960250,1.21042742,71223.0,71222.0,8.23221911]
[1717753960466,1.21042742,71223.0,71222.0,8.24621911]
[1717753960890,1.21042742,71223.0,71222.0,8.23221911]
[1717753961368,1.21042742,71223.0,71222.0,8.24621911]
[1717753962027,1.21042742,71223.0,71222.0,3.85366811]
[1717753962705,1.21042742,71223.0,71222.0,3.86766811]
[1717753964247,1.21042742,71223.0,71222.0,4.05314054]
[1717753965840,1.21042742,71223.0,71222.0,3.86766811]
[1717753966276,1.21042742,71223.0,71222.0,3.12093592]
[1717753966505,1.21042742,71223.0,71222.0,3.43203745]
[1717753966995,1.21042742,71223.0,71222.0,3.61747646]
[1717753967410,1.21042742,71223.0,71222.0,4.0530186]
[1717753967623,1.21042742,71223.0,71222.0,3.8541336]
[1717753967826,1.21042742,71223.0,71222.0,3.6206456]
[1717753968064,1.21042742,71223.0,71222.0,3.18510346]
[1717753968284,1.21042742,71223.0,71222.0,2.99966445]
[1717753975298,1.21042742,71223.0,71222.0,2.99966778]
[1717753975680,1.21042742,71223.0,71222.0,2.49086778]
[1717753975961,1.21042742,71223.0,71222.0,2.26379178]
[1717753976081,1.21042742,71223.0,71222.0,2.12999178]
[1717753976282,1.21042742,71223.0,71222.0,2.04077337]
[1717753976516,1.21042742,71223.0,71222.0,2.24277337]
[1717753976955,1.21042742,71223.0,71222.0,2.04077337]
[1717753977620,1.21042742,71223.0,71222.0,2.06377337]
[1717753978401,1.21042742,71223.0,71222.0,2.26577337]
[1717753978959,1.21042742,71223.0,71222.0,2.06377337]
[1717753979733,1.21042742,71223.0,71222.0,2.05957507]
[1717753980138,1.21042742,71223.0,71222.0,2.05959544]
[1717753980342,1.21042742,71223.0,71222.0,2.06379374]
[1717753980537,1.21042742,71223.0,71222.0,2.26379374]
[1717753980738,1.21042742,71223.0,71222.0,2.26579374]
[1717753982462,1.21042742,71223.0,71222.0,2.93824574]
[1717753985184,1.21042742,71223.0,71222.0,3.01864574]
[1717753985745,1.21042742,71223.0,71222.0,3.16884574]
[1717753987854,1.21042742,71223.0,71222.0,3.23509725]
[1717753988128,1.21042742,71223.0,71222.0,3.67067258]
[1717753988770,1.21042742,71223.0,71222.0,3.86377258]
[1717753989170,1.21042742,71223.0,71222.0,4.04928779]
[1717753989413,1.21042742,71223.0,71222.0,3.86377258]
[1717753990226,0.1646,71234.0,71222.0,3.86377258]
[1717753990227,0.24434872,71258.0,71240.0,0.12444958]
[1717753990370,0.1646,71258.0,71248.0,0.2445523]
[1717753990589,0.1646,71258.0,71248.0,0.89129646]
[1717753990799,0.1646,71258.0,71248.0,0.89742917]
[1717753991015,0.1646,71258.0,71248.0,1.09942917]
[1717753991226,0.1646,71258.0,71248.0,1.73955617]
[1717753991629,0.1646,71258.0,71248.0,1.73944773]
[1717753992288,0.1646,71258.0,71248.0,1.81072591]
[1717753992494,0.1646,71258.0,71248.0,1.89292591]
[1717753992697,0.1646,71258.0,71248.0,1.76744773]
[1717753994165,0.1646,71258.0,71248.0,1.75344773]
[1717753994689,0.1646,71258.0,71248.0,1.76744773]
[1717753995701,0.0821,71252.0,71248.0,1.76744773]
[1717753996075,0.0821,71252.0,71248.0,1.76745167]
[1717753999488,0.0821,71252.0,71248.0,1.87185943]
[1717754000096,0.0821,71252.0,71248.0,1.76745167]
[1717754000532,0.0821,71252.0,71248.0,1.87169818]
[1717754001372,0.0821,71252.0,71248.0,1.92785818]
[1717754002399,0.0821,71252.0,71248.0,1.82346195]
[1717754002805,0.1646,71258.0,71248.0,1.92785818]
[1717754003256,0.1646,71258.0,71248.0,1.82346195]
[1717754003459,0.1646,71258.0,71248.0,2.00008642]
[1717754004451,0.1646,71258.0,71248.0,2.58953747]
[1717754005268,0.004,71259.0,71252.0,0.2]
[1717754005615,0.004,71259.0,71258.0,0.7739246]
[1717754005816,0.004,71259.0,71258.0,1.01834353]
[1717754006039,0.004,71259.0,71258.0,1.03729393]
[1717754006188,0.2351,71259.0,71258.0,1.03729393]
[1717754006586,0.2351,71259.0,71258.0,1.04134353]
[1717754007026,0.0809,71259.0,71258.0,0.824675]
[1717754007235,0.0809,71259.0,71258.0,0.892875]
[1717754007476,0.0809,71259.0,71258.0,0.883875]
[1717754008031,0.0809,71259.0,71258.0,0.869875]
[1717754008233,0.0809,71259.0,71258.0,0.883875]
[1717754008638,0.0809,71259.0,71258.0,0.897875]
[1717754008861,0.0809,71259.0,71258.0,0.883875]
[1717754009345,0.0809,71259.0,71258.0,0.897875]
[1717754010143,0.2429,71259.0,71258.0,0.897875]
[1717754011750,0.166,71259.0,71258.0,1.06934353]
[1717754012611,0.166,71259.0,71258.0,1.05129393]
[1717754012795,0.166,71259.0,71258.0,1.04134353]
[1717754012977,0.166,71259.0,71258.0,1.05534353]
[1717754013382,0.004,71259.0,71258.0,1.05534353]
[1717754013786,0.004,71259.0,71258.0,1.05129393]
[1717754013983,0.004,71259.0,71258.0,1.06529393]
[1717754014160,0.004,71259.0,71258.0,1.06934353]
[1717754014367,0.0105,71261.0,71260.0,0.420993]
[1717754014573,0.0105,71261.0,71260.0,0.96907393]
[1717754015354,0.0105,71261.0,71260.0,0.97312353]
[1717754015568,0.0833,71267.0,71266.0,0.280638]
[1717754015750,0.0833,71267.0,71266.0,0.380638]
[1717754016005,0.0833,71267.0,71266.0,0.448838]
[1717754016459,1.068678,71268.0,71267.0,0.420951]
[1717754016696,1.068678,71268.0,71267.0,0.520951]
[1717754018255,1.068678,71268.0,71267.0,0.534951]
[1717754018706,1.229878,71268.0,71267.0,0.534951]
[1717754018913,1.24522091,71268.0,71267.0,0.534951]
[1717754019128,1.24522091,71268.0,71267.0,0.548951]
[1717754019336,1.309978,71268.0,71267.0,0.548951]
[1717754020599,1.32532091,71268.0,71267.0,0.548951]
[1717754020998,1.309978,71268.0,71267.0,0.548951]
[1717754024451,1.309978,71268.0,71267.0,0.617151]
[1717754024873,1.229878,71268.0,71267.0,0.90831989]
[1717754026592,1.24522091,71268.0,71267.0,0.84011989]
[1717754026818,1.24522091,71268.0,71267.0,0.90831989]
[1717754027038,1.08402091,71268.0,71267.0,0.84011989]
[1717754028759,1.068678,71268.0,71267.0,0.84011989]
[1717754028973,1.08402091,71268.0,71267.0,0.84011989]
[1717754029617,1.16412091,71268.0,71267.0,0.84011989]
[1717754030019,1.16412091,71268.0,71267.0,0.84264589]
[1717754030257,1.08402091,71268.0,71267.0,0.84264589]
[1717754030463,1.24166963,71268.0,71267.0,0.551477]
[1717754030665,1.16376963,71268.0,71267.0,0.551477]
[1717754031312,1.39706963,71268.0,71267.0,0.551477]
[1717754031502,1.40476963,71268.0,71267.0,0.551477]
[1717754031711,1.16376963,71268.0,71267.0,0.551477]
[1717754031928,1.40476963,71268.0,71267.0,0.551477]
[1717754034468,1.16376963,71268.0,71267.0,0.551477]
[1717754036133,1.14842672,71268.0,71267.0,0.551477]
[1717754036335,1.32776963,71268.0,71267.0,0.59320869]
[1717754036821,1.31242672,71268.0,71267.0,0.59320869]
[1717754036968,1.32776963,71268.0,71267.0,0.59320869]
[1717754037930,1.31242672,71268.0,71267.0,0.61407454]
[1717754038142,1.32776963,71268.0,71267.0,0.61407454]
[1717754039336,1.16376963,71268.0,71267.0,0.551477]
[1717754040417,1.068678,71268.0,71267.0,0.551477]
[1717754040845,1.068678,71268.0,71267.0,0.86247796]
[1717754043795,1.048678,71268.0,71267.0,0.86247796]
[1717754044828,1.048678,71268.0,71267.0,1.22657535]
[1717754045941,1.048678,71268.0,71267.0,1.29477535]
[1717754046172,1.048678,71268.0,71267.0,1.37417535]
[1717754048358,1.06402091,71268.0,71267.0,1.37417535]
[1717754050330,1.14376963,71268.0,71267.0,0.350243]
[1717754050748,1.14376963,71268.0,71267.0,0.39214351]
[1717754051161,1.15376963,71268.0,71267.0,0.31274351]
[1717754051372,1.14376963,71268.0,71267.0,0.270843]
[1717754052498,1.14376963,71268.0,71267.0,0.271789]
[1717754052926,1.14462963,71268.0,71267.0,0.271789]
[1717754053893,1.14462963,71268.0,71267.0,0.31368951]
[1717754055797,1.14462963,71268.0,71267.0,0.29968951]
[1717754056213,1.14462963,71268.0,71267.0,0.31368951]
[1717754056416,1.14462963,71268.0,71267.0,0.271789]
[1717754056619,1.14462963,71268.0,71267.0,0.29968951]
[1717754056936,1.14462963,71268.0,71267.0,0.31368951]
[1717754058225,1.14462963,71268.0,71267.0,0.271789]
[1717754061030,1.14462963,71268.0,71267.0,0.31369226]
[1717754061248,1.15462963,71268.0,71267.0,0.21369226]
[1717754061471,1.15462963,71268.0,71267.0,0.171789]
[1717754065898,1.14462963,71268.0,71267.0,0.171789]
[1717754066116,1.15462963,71268.0,71267.0,0.171789]
[1717754073038,1.14462963,71268.0,71267.0,0.171789]
[1717754091330,1.12928672,71268.0,71267.0,0.171789]
[1717754091554,1.14462963,71268.0,71267.0,0.171789]